bitfinex/quotes_BTCUSD_20250519
["timestamp","ask_amount","ask_price","bid_price","bid_amount"]
[1747630002730,0.50433835,103180.0,103170.0,0.03978543]
[1747630003349,0.50433835,103180.0,103170.0,0.10978543]
[1747630004417,0.50433835,103180.0,103170.0,0.0864]
[1747630004570,0.50433835,103180.0,103170.0,0.10809466]
[1747630005565,0.50433835,103180.0,103170.0,0.09259466]
[1747630006424,0.50433835,103180.0,103170.0,0.03211489]
[1747630006829,0.50433835,103180.0,103170.0,0.11811489]
[1747630009801,0.50433835,103180.0,103170.0,0.04811489]
[1747630010294,0.50433835,103180.0,103170.0,0.11811489]
[1747630011196,0.51403005,103180.0,103170.0,0.32166243]
[1747630011442,0.51403005,103180.0,103170.0,0.33135488]
[1747630011443,0.41672046,103180.0,103170.0,0.33135488]
[1747630011657,0.2228836,103180.0,103170.0,0.69073932]
[1747630011899,0.19381,103180.0,103170.0,0.69073932]
[1747630012372,0.19381,103180.0,103170.0,0.70528017]
[1747630012622,0.16444631,103180.0,103170.0,0.70628017]
[1747630012848,0.11603631,103180.0,103170.0,0.71028017]
[1747630013298,0.06759819,103180.0,103170.0,0.71028017]
[1747630013495,0.06759819,103180.0,103170.0,0.70828017]
[1747630013844,0.02023819,103180.0,103170.0,0.80558957]
[1747630014083,0.6984,103190.0,103180.0,0.60905112]
[1747630014783,0.22948,103220.0,103210.0,0.25514547]
[1747630015011,1.37945694,103230.0,103220.0,0.21934874]
[1747630015232,1.06841433,103230.0,103220.0,0.24543669]
[1747630015458,1.06841433,103230.0,103220.0,0.24543678]
[1747630015714,1.06841433,103230.0,103220.0,0.32163144]
[1747630015941,0.77110804,103230.0,103220.0,0.34629713]
[1747630016163,0.74204739,103230.0,103220.0,0.36567208]
[1747630016329,0.76142113,103230.0,103220.0,0.36567208]
[1747630016559,0.76142103,103230.0,103220.0,0.36567208]
[1747630016931,0.77110804,103230.0,103220.0,0.36567208]
[1747630017421,0.96485016,103230.0,103220.0,0.33660937]
[1747630017661,0.95516372,103230.0,103220.0,0.35598508]
[1747630017882,0.95516372,103230.0,103220.0,0.36567274]
[1747630018090,0.95516372,103230.0,103220.0,0.35598508]
[1747630019041,0.95516372,103230.0,103220.0,0.36567265]
[1747630019238,0.73236095,103230.0,103220.0,0.37536013]
[1747630019457,0.01985472,103230.0,103220.0,0.37535947]
[1747630019898,0.00048155,103230.0,103220.0,0.37535947]
[1747630020110,0.02954108,103230.0,103220.0,0.37535947]
[1747630020311,0.02954108,103230.0,103220.0,0.13316044]
[1747630020312,0.22328385,103230.0,103220.0,0.13316044]
[1747630020520,0.31090671,103230.0,103220.0,0.32692133]
[1747630020749,0.30121998,103230.0,103220.0,0.13316044]
[1747630020945,0.54883259,103230.0,103220.0,0.07619466]
[1747630021359,0.54883259,103230.0,103220.0,0.07]
[1747630021568,0.30121998,103230.0,103220.0,0.07]
[1747630021948,0.53049998,103230.0,103220.0,0.07]
[1747630022716,1.16506998,103230.0,103220.0,0.07]
[1747630023947,0.20344893,103220.0,103210.0,0.37425133]
[1747630024236,0.30075833,103220.0,103210.0,0.37425133]
[1747630024466,0.30075833,103220.0,103210.0,0.43456235]
[1747630024669,0.30075833,103220.0,103210.0,0.65263413]
[1747630025086,0.30075833,103220.0,103210.0,0.65880576]
[1747630025730,0.30075833,103220.0,103210.0,0.10033721]
[1747630025987,0.30075833,103220.0,103210.0,0.09416558]
[1747630026210,0.32013338,103220.0,103210.0,0.31263404]
[1747630026431,0.32013338,103220.0,103210.0,0.09416558]
[1747630026432,0.3104459,103220.0,103210.0,0.09416558]
[1747630027093,0.3104459,103220.0,103210.0,0.10916558]
[1747630027295,0.3104459,103220.0,103210.0,0.30294525]
[1747630027522,0.30075814,103220.0,103210.0,0.12456558]
[1747630027670,0.29107029,103220.0,103210.0,0.12456558]
[1747630028084,0.29107029,103220.0,103210.0,0.10916558]
[1747630028674,0.29107029,103220.0,103210.0,0.09416558]
[1747630030702,0.29107029,103220.0,103210.0,0.02416558]
[1747630030901,0.20346865,103210.0,103200.0,0.3554]
[1747630031070,0.30077805,103210.0,103200.0,0.45008992]
[1747630031470,0.30077805,103210.0,103200.0,0.45626565]
[1747630031750,0.31046675,103210.0,103200.0,0.65006409]
[1747630031892,0.11668614,103210.0,103200.0,0.67913253]
[1747630032092,0.21313669,103220.0,103210.0,0.24515715]
[1747630032293,0.31044609,103220.0,103210.0,0.25484557]
[1747630032517,0.31044609,103220.0,103210.0,0.24515715]
[1747630032847,0.11668408,103220.0,103210.0,0.32484547]
[1747630033065,0.14574829,103220.0,103210.0,0.32484547]
[1747630033312,0.14574829,103220.0,103210.0,0.33102139]
[1747630033313,0.14809832,103220.0,103210.0,0.33102139]
[1747630033692,0.31044628,103220.0,103210.0,0.10817573]
[1747630033923,0.31044628,103220.0,103210.0,0.13189586]
[1747630038131,0.31044628,103220.0,103210.0,0.09989586]
[1747630038358,0.31044628,103220.0,103210.0,0.02047144]
[1747630038359,0.59015889,103220.0,103210.0,0.02047144]
[1747630038560,0.59015889,103220.0,103210.0,0.00617573]
[1747630039403,0.32704628,103220.0,103210.0,0.00617573]
[1747630039604,0.78536628,103220.0,103210.0,0.00617573]
[1747630039814,0.19377967,103210.0,103200.0,0.0159]
[1747630040026,0.2934391,103210.0,103200.0,0.0159]
[1747630040219,0.20348817,103200.0,103190.0,0.1121615]
[1747630040418,0.30079757,103200.0,103190.0,0.1121615]
[1747630041108,0.30079757,103200.0,103190.0,0.10186093]
[1747630041309,0.30079757,103200.0,103190.0,0.08596093]
[1747630041511,0.30079757,103200.0,103190.0,0.100817]
[1747630041945,0.30079757,103200.0,103190.0,0.117117]
[1747630042910,0.30079757,103200.0,103190.0,0.047117]
[1747630043112,0.30079757,103200.0,103190.0,0.042117]
[1747630043518,0.30079757,103200.0,103190.0,0.112117]
[1747630043816,0.30079757,103200.0,103190.0,0.1073555]
[1747630046329,0.30079757,103200.0,103190.0,0.1230555]
[1747630046535,0.30079757,103200.0,103190.0,0.0530555]
[1747630046940,0.30079757,103200.0,103190.0,0.1230555]
[1747630048150,0.49460757,103200.0,103190.0,0.1230555]
[1747630050363,0.50429721,103200.0,103190.0,0.31687273]
[1747630050543,0.50429721,103200.0,103190.0,0.32656359]
[1747630050742,0.49460757,103200.0,103190.0,0.1230555]
[1747630051176,0.49460757,103200.0,103190.0,0.13078464]
[1747630052256,0.49460757,103200.0,103190.0,0.1404755]
[1747630052781,0.49460757,103200.0,103190.0,0.13078464]
[1747630057542,0.49460757,103200.0,103190.0,0.11508464]
[1747630058304,0.51050757,103200.0,103190.0,0.09878464]
[1747630059172,0.49460757,103200.0,103190.0,0.09878464]
[1747630059670,0.72304757,103200.0,103190.0,0.09878464]
[1747630059855,0.72304757,103200.0,103190.0,0.1071555]
[1747630060059,0.72304757,103200.0,103190.0,0.0910555]
[1747630060206,0.73874757,103200.0,103190.0,0.0910555]
[1747630060881,1.00156018,103200.0,103190.0,0.0910555]
[1747630061216,1.00156018,103200.0,103190.0,0.00619943]
[1747630062735,1.00156018,103200.0,103180.0,0.07]
[1747630062736,0.2361079,103190.0,103180.0,0.07]
[1747630062966,0.77483991,103190.0,103180.0,0.07]
[1747630063173,0.20352762,103180.0,103170.0,0.00772914]
[1747630063331,0.49464702,103180.0,103170.0,0.00772914]
[1747630063752,0.49464702,103180.0,103170.0,0.07772914]
[1747630063989,0.49464702,103180.0,103170.0,0.08393062]
[1747630064188,0.49464702,103180.0,103170.0,0.09850884]
[1747630065757,0.49564702,103180.0,103170.0,0.09850884]
[1747630065961,0.98709963,103180.0,103170.0,0.09850884]
[1747630066131,1.00269963,103180.0,103170.0,0.08393062]
[1747630066353,0.75508702,103180.0,103170.0,0.08393062]
[1747630066654,0.75508702,103180.0,103170.0,0.01393062]
[1747630066873,0.73948702,103180.0,103170.0,0.01393062]
[1747630067260,0.73948702,103180.0,103170.0,0.08393062]
[1747630067474,0.75538702,103180.0,103170.0,0.08393062]
[1747630068127,0.75538702,103180.0,103170.0,0.07620148]
[1747630069097,1.00299963,103180.0,103170.0,0.00620148]
[1747630069305,0.21864735,103170.0,103160.0,0.01417342]
[1747630069439,1.24255675,103170.0,103160.0,0.01422176]
[1747630069640,1.43636675,103170.0,103160.0,0.07004834]
[1747630070541,1.43636675,103170.0,103160.0,0.07624576]
[1747630070743,1.68397936,103170.0,103160.0,0.07624576]
[1747630070920,1.69719936,103170.0,103160.0,0.07624576]
[1747630071520,1.69719936,103170.0,103160.0,0.00624576]
[1747630071726,1.69719936,103170.0,103160.0,4.834e-05]
[1747630071978,1.69719936,103170.0,103160.0,0.00104834]
[1747630072553,1.69719936,103170.0,103160.0,4.834e-05]
[1747630074709,1.44958675,103170.0,103160.0,4.834e-05]
[1747630074911,1.71174021,103170.0,103160.0,4.834e-05]
[1747630075927,1.71374021,103170.0,103160.0,4.834e-05]
[1747630076559,1.01534021,103170.0,103160.0,4.834e-05]
[1747630079991,0.97370255,103170.0,103160.0,4.834e-05]
[1747630080374,0.9833951,103170.0,103160.0,4.834e-05]
[1747630080791,0.73578249,103170.0,103160.0,4.834e-05]
[1747630081009,0.9833951,103170.0,103160.0,4.834e-05]
[1747630085478,0.99324052,103170.0,103160.0,4.834e-05]
[1747630086539,1.67816253,103170.0,103160.0,4.834e-05]
[1747630086743,1.69816253,103170.0,103160.0,4.834e-05]
[1747630086982,1.59085313,103170.0,103160.0,4.834e-05]
[1747630087387,1.63905313,103170.0,103160.0,4.834e-05]
[1747630087632,6.77861113,103170.0,103160.0,4.834e-05]
[1747630087833,0.22912232,103130.0,103120.0,0.00772914]
[1747630088034,1.23831518,103130.0,103120.0,0.00772914]
[1747630088207,1.25451518,103130.0,103120.0,0.00772914]
[1747630088416,1.59451518,103130.0,103120.0,0.00772914]
[1747630089289,1.59560839,103130.0,103120.0,0.00772914]
[1747630089686,0.2133637,103110.0,103100.0,0.1087532]
[1747630089927,0.3106731,103110.0,103100.0,0.1087532]
[1747630090107,0.5044831,103110.0,103100.0,0.1087532]
[1747630090531,0.5044831,103110.0,103100.0,0.0312]
[1747630091411,0.5044831,103110.0,103100.0,0.03738428]
[1747630091623,0.5044831,103110.0,103100.0,0.03838428]
[1747630092619,0.5044831,103110.0,103100.0,0.10838428]
[1747630092848,1.46649571,103110.0,103100.0,0.00718428]
[1747630093408,1.48103656,103110.0,103100.0,0.00718428]
[1747630093622,1.38534917,103110.0,103100.0,0.00718428]
[1747630094063,1.38534917,103110.0,103100.0,0.001]
[1747630094213,0.2347264,103100.0,103090.0,0.00772914]
[1747630094421,1.64805841,103100.0,103090.0,0.00772914]
[1747630094666,1.66325841,103100.0,103090.0,0.00772914]
[1747630095278,0.00970167,103070.0,103060.0,0.53601419]
[1747630095480,0.72481398,103070.0,103060.0,0.53601419]
[1747630095689,0.7321659,103070.0,103060.0,0.53601419]
[1747630096522,0.7321659,103070.0,103060.0,0.53649512]
[1747630097271,0.7321659,103070.0,103060.0,0.45894192]
[1747630097494,0.7321659,103070.0,103060.0,0.46511494]
[1747630097697,0.9604059,103070.0,103060.0,0.12711494]
[1747630098193,0.9604059,103070.0,103060.0,0.12911494]
[1747630098823,1.3314259,103070.0,103060.0,0.08838309]
[1747630099084,1.3314259,103070.0,103060.0,0.01438309]
[1747630099085,1.77844196,103070.0,103060.0,0.01438309]
[1747630099374,1.67113256,103070.0,103060.0,0.01438309]
[1747630099591,1.67113256,103070.0,103060.0,0.01538309]
[1747630099800,1.68113256,103070.0,103060.0,0.00148093]
[1747630100026,1.68113256,103070.0,103060.0,0.00048093]
[1747630100482,1.67113256,103070.0,103060.0,0.00048093]
[1747630100689,1.68113256,103070.0,103060.0,0.00048093]
[1747630100890,1.60357936,103070.0,103060.0,0.00048093]
[1747630101542,1.60457936,103070.0,103060.0,0.00048093]
[1747630101988,1.60357936,103070.0,103060.0,0.00048093]
[1747630102544,1.60757936,103070.0,103060.0,0.00048093]
[1747630103159,1.66757936,103070.0,103060.0,0.00048093]
[1747630103851,1.65757936,103070.0,103060.0,0.00048093]
[1747630104058,1.66757936,103070.0,103060.0,0.00048093]
[1747630104265,1.66757936,103070.0,103030.0,0.1]
[1747630104266,0.22950864,103040.0,103030.0,0.1]
[1747630104468,1.44827065,103040.0,103030.0,0.1]
[1747630104670,2.0124215,103040.0,103030.0,0.1]
[1747630105237,1.5575415,103040.0,103030.0,0.1]
[1747630105442,2.0124615,103040.0,103030.0,0.1]
[1747630106460,2.0144615,103040.0,103030.0,0.1]
[1747630107728,0.21357082,103010.0,103000.0,0.20309695]
[1747630107932,1.02795368,103010.0,103000.0,0.20309695]
[1747630108087,1.23168149,103010.0,103000.0,0.20309695]
[1747630108496,1.22176368,103010.0,103000.0,0.20309695]
[1747630108694,0.95961022,103010.0,103000.0,0.20309695]
[1747630109136,0.50469022,103010.0,103000.0,0.20314529]
[1747630109347,1.20726283,103010.0,103000.0,0.20314529]
[1747630109545,0.96165022,103010.0,103000.0,0.19814529]
[1747630109779,0.96165022,103010.0,103000.0,0.21384529]
[1747630109978,1.21126283,103010.0,103000.0,0.21384529]
[1747630110195,0.75630283,103010.0,103000.0,0.21384529]
[1747630110413,0.50869022,103010.0,103000.0,0.21384529]
[1747630110539,0.50869022,103010.0,103000.0,0.22894529]
[1747630110924,0.96361022,103010.0,103000.0,0.22894529]
[1747630111575,0.96369022,103010.0,103000.0,0.22894529]
[1747630112976,0.50869022,103010.0,103000.0,0.22894529]
[1747630113176,0.96365022,103010.0,103000.0,0.22894529]
[1747630113388,0.96365022,103010.0,103000.0,0.29894529]
[1747630114106,0.50869022,103010.0,103000.0,0.29894529]
[1747630114297,0.96361022,103010.0,103000.0,0.29894529]
[1747630116709,0.96361022,103010.0,103000.0,0.30509671]
[1747630117365,0.96161022,103010.0,103000.0,0.30509671]
[1747630117720,0.95961022,103010.0,103000.0,0.30509671]
[1747630117921,0.95961022,103010.0,103000.0,0.30812947]
[1747630118132,0.96061022,103010.0,103000.0,0.30812947]
[1747630118944,0.50569022,103010.0,103000.0,0.30812947]
[1747630119165,0.73329022,103010.0,103000.0,0.30812947]
[1747630119371,0.96057022,103010.0,103000.0,0.30812947]
[1747630120917,0.95957022,103010.0,103000.0,0.31585861]
[1747630121261,0.95957022,103010.0,103000.0,0.31685861]
[1747630121838,0.95957022,103010.0,103000.0,0.31785861]
[1747630122024,0.95957022,103010.0,103000.0,0.31685861]
[1747630122242,0.73229022,103010.0,103000.0,0.31785861]
[1747630122436,0.95953022,103010.0,103000.0,0.31685861]
[1747630123777,0.95953022,103010.0,103000.0,0.31943539]
[1747630124180,0.95953022,103010.0,103000.0,0.32043539]
[1747630126648,0.95953022,103010.0,103000.0,0.31012947]
[1747630128049,0.95565389,103010.0,103000.0,0.31012947]
[1747630128947,0.95565389,103010.0,103000.0,0.27932947]
[1747630129389,1.2191665,103010.0,103000.0,0.27932947]
[1747630129604,1.3128197,103010.0,103000.0,0.20932947]
[1747630130018,1.2352665,103010.0,103000.0,0.20932947]
[1747630130227,0.97155389,103010.0,103000.0,0.20932947]
[1747630130856,0.97155389,103010.0,103000.0,0.21710064]
[1747630131061,0.95565389,103010.0,103000.0,0.21710064]
[1747630131289,0.72841389,103010.0,103000.0,0.21710064]
[1747630131490,0.95545389,103010.0,103000.0,0.21710064]
[1747630131701,0.95545389,103010.0,103000.0,0.21406788]
[1747630131901,0.95545389,103010.0,103000.0,0.22976788]
[1747630132313,0.95545389,103010.0,103000.0,0.24546788]
[1747630132314,0.50081389,103010.0,103000.0,0.24546788]
[1747630132522,0.95545389,103010.0,103000.0,0.24546788]
[1747630132723,0.95545389,103010.0,103000.0,0.22976788]
[1747630133399,0.95545389,103010.0,103000.0,0.23235867]
[1747630133618,0.95545389,103010.0,103000.0,0.24805867]
[1747630134571,0.95545389,103010.0,103000.0,0.24705867]
[1747630134970,0.95645389,103010.0,103000.0,0.24605867]
[1747630135172,0.50181389,103010.0,103000.0,0.24605867]
[1747630135375,0.95581389,103010.0,103000.0,0.24605867]
[1747630136282,0.72881389,103010.0,103000.0,0.24605867]
[1747630136481,0.50181389,103010.0,103000.0,0.24605867]
[1747630136637,0.72877389,103010.0,103000.0,0.23569671]
[1747630137088,0.72877389,103010.0,103000.0,0.30569671]
[1747630137474,0.72777389,103010.0,103000.0,0.30569671]
[1747630137677,0.72777389,103010.0,103000.0,0.28999671]
[1747630137876,0.72777389,103010.0,103000.0,0.27529671]
[1747630138101,0.74407389,103010.0,103000.0,0.20529671]
[1747630138301,0.74407389,103010.0,103000.0,0.20629671]
[1747630138508,0.74331389,103010.0,103000.0,0.20629671]
[1747630138734,0.72701389,103010.0,103000.0,0.20629671]
[1747630139377,0.72701389,103010.0,103000.0,0.21307971]
[1747630139498,0.72701389,103010.0,103000.0,0.21207971]
[1747630139713,0.72801389,103010.0,103000.0,0.21207971]
[1747630139937,0.74431389,103010.0,103000.0,0.21207971]
[1747630141419,1.02146735,103010.0,103000.0,0.21207971]
[1747630141656,1.09902055,103010.0,103000.0,0.21207971]
[1747630142090,1.02146735,103010.0,103000.0,0.21207971]
[1747630142293,0.72801389,103010.0,103000.0,0.21207971]
[1747630142507,0.72801389,103010.0,103000.0,0.20429671]
[1747630142681,0.95493389,103010.0,103000.0,0.20429671]
[1747630143721,0.97113389,103010.0,103000.0,0.20429671]
[1747630143874,0.97113389,103010.0,103000.0,0.16768671]
[1747630144276,1.2187465,103010.0,103000.0,0.16768671]
[1747630145084,0.95493389,103010.0,103000.0,0.16768671]
[1747630145702,0.50105389,103010.0,103000.0,0.16768671]
[1747630145933,0.95485389,103010.0,103000.0,0.16768671]
[1747630147805,0.72805389,103010.0,103000.0,0.19978671]
[1747630147981,0.95485389,103010.0,103000.0,0.19978671]
[1747630148385,0.95481389,103010.0,103000.0,0.19978671]
[1747630148893,0.53853432,103010.0,103000.0,0.82337846]
[1747630149095,0.52882644,103010.0,103000.0,0.83308653]
[1747630149345,0.65479574,103010.0,103000.0,0.82337846]
[1747630149521,0.64508861,103010.0,103000.0,0.82337864]
[1747630149720,0.6343812,103010.0,103000.0,0.82337864]
[1747630150136,0.6343812,103010.0,103000.0,0.82437864]
[1747630150359,0.6343812,103010.0,103000.0,0.83408709]
[1747630150557,0.6343812,103010.0,103000.0,0.82437864]
[1747630151308,0.6246736,103010.0,103000.0,0.61178671]
[1747630151521,0.6246736,103010.0,103000.0,0.61956971]
[1747630152813,0.948663,103010.0,103000.0,0.27956971]
[1747630153028,0.948663,103010.0,103000.0,0.26396971]
[1747630154396,0.948663,103010.0,103000.0,0.27178671]
[1747630154617,0.948663,103010.0,103000.0,0.25618671]
[1747630154817,0.948663,103010.0,103000.0,0.16968671]
[1747630155023,0.964963,103010.0,103000.0,0.16968671]
[1747630156251,0.964963,103010.0,103000.0,0.16353529]
[1747630156664,0.948663,103010.0,103000.0,0.16353529]
[1747630156864,0.948583,103010.0,103000.0,0.16353529]
[1747630158168,0.721983,103010.0,103000.0,0.16353529]
[1747630158384,0.948543,103010.0,103000.0,0.16353529]
[1747630158579,0.948543,103010.0,103000.0,0.17943529]
[1747630158778,0.948543,103010.0,103000.0,0.19473529]
[1747630159248,0.948543,103010.0,103000.0,0.20095491]
[1747630159461,0.948543,103010.0,103000.0,0.18565491]
[1747630160548,0.948503,103010.0,103000.0,0.20115491]
[1747630162295,0.948463,103010.0,103000.0,0.27115491]
[1747630162521,0.6241536,103010.0,103000.0,0.27115491]
[1747630164685,0.721463,103010.0,103000.0,0.25565491]
[1747630164895,0.721463,103010.0,103000.0,0.23975491]
[1747630165097,0.494983,103010.0,103000.0,0.23975491]
[1747630165326,0.947783,103010.0,103000.0,0.27205491]
[1747630167725,0.6240736,103010.0,103000.0,0.27205491]
[1747630167989,0.8504336,103010.0,103000.0,0.80622966]
[1747630168155,0.43962454,103010.0,103000.0,0.8159382]
[1747630168309,0.65319574,103010.0,103000.0,0.80622966]
[1747630168558,0.4073812,103010.0,103000.0,0.61205491]
[1747630169193,0.4073812,103010.0,103000.0,0.62176364]
[1747630169399,0.4073812,103010.0,103000.0,0.61205491]
[1747630169621,0.39767369,103010.0,103000.0,0.61205491]
[1747630170074,0.39767369,103010.0,103000.0,0.61983791]
[1747630172236,0.39767369,103010.0,103000.0,0.8237213]
[1747630172469,0.39767369,103010.0,103000.0,0.83342984]
[1747630172691,0.39767369,103010.0,103000.0,0.8237213]
[1747630172919,0.3879659,103010.0,103000.0,0.61983791]
[1747630174872,0.4852753,103010.0,103000.0,0.26353791]
[1747630175299,0.4852753,103010.0,103000.0,0.24753791]
[1747630175509,0.5010753,103010.0,103000.0,0.24753791]
[1747630176137,0.5010753,103010.0,103000.0,0.23975491]
[1747630176347,0.51561615,103010.0,103000.0,0.23975491]
[1747630177209,0.51561615,103010.0,103000.0,0.16975491]
[1747630178330,0.53121615,103010.0,103000.0,0.16975491]
[1747630178874,0.51561615,103010.0,103000.0,0.16975491]
[1747630180695,0.95369136,103010.0,103000.0,0.16975491]
[1747630180982,0.85638196,103010.0,103000.0,0.16975491]
[1747630181345,0.85638196,103010.0,103000.0,0.16353529]
[1747630181651,0.85638196,103010.0,103000.0,0.16253529]
[1747630181848,0.85838196,103010.0,103000.0,0.16253529]
[1747630182346,0.85838196,103010.0,103000.0,0.16153529]
[1747630182926,0.86038196,103010.0,103000.0,0.16153529]
[1747630184258,0.78282876,103010.0,103000.0,0.16153529]
[1747630188320,1.29769136,103010.0,103000.0,0.16153529]
[1747630188993,1.20038196,103010.0,103000.0,0.16153529]
[1747630189215,1.12282876,103010.0,103000.0,0.16153529]
[1747630190900,0.22817389,102980.0,102970.0,0.0156683]
[1747630191106,1.6689659,102980.0,102970.0,0.01571663]
[1747630191818,1.18141329,102980.0,102970.0,0.01571663]
[1747630192039,1.40721329,102980.0,102970.0,0.01571663]
[1747630192239,1.40725329,102980.0,102970.0,0.01571663]
[1747630192459,1.40925329,102980.0,102970.0,0.01571663]
[1747630192842,1.41025329,102980.0,102970.0,0.01571663]
[1747630193053,0.94161329,102980.0,102970.0,0.01571663]
[1747630193282,1.37831244,102980.0,102970.0,0.01571663]
[1747630193502,1.39285329,102980.0,102970.0,0.04681663]
[1747630193748,0.94261329,102980.0,102970.0,0.04681663]
[1747630193962,1.39485329,102980.0,102970.0,0.05655746]
[1747630194395,1.39485329,102980.0,102970.0,0.04125746]
[1747630194599,1.39485329,102980.0,102970.0,0.01571663]
[1747630194806,1.39281329,102980.0,102970.0,0.01571663]
[1747630195005,1.39081329,102980.0,102970.0,0.01671663]
[1747630195222,1.39081329,102980.0,102970.0,0.01771663]
[1747630196079,1.6538259,102980.0,102970.0,0.01771663]
[1747630199990,1.7138259,102980.0,102970.0,0.01771663]
[1747630200634,1.6538259,102980.0,102970.0,0.01771663]
[1747630202811,1.6530259,102980.0,102970.0,0.01771663]
[1747630205623,2.0903353,102980.0,102970.0,0.01771663]
[1747630205836,2.1063353,102980.0,102970.0,0.01771663]
[1747630207277,2.1663353,102980.0,102970.0,0.01771663]
[1747630207500,0.01,102940.0,102930.0,0.00776101]
[1747630207725,2.12134155,102940.0,102930.0,0.00790607]
[1747630207945,0.57248262,102920.0,102910.0,0.02100758]
[1747630208156,6.45032844,102920.0,102910.0,0.02100758]
[1747630208383,1.12121463,102920.0,102910.0,0.02148338]
[1747630208599,1.20852403,102920.0,102910.0,0.02148338]
[1747630208824,1.22502403,102920.0,102910.0,0.00648338]
[1747630209480,1.23456282,102920.0,102910.0,0.00648338]
[1747630209708,1.14725342,102920.0,102910.0,0.00648338]
[1747630209931,1.12075342,102920.0,102910.0,0.00648338]
[1747630210177,1.54871463,102920.0,102910.0,0.00648338]
[1747630210835,1.55371463,102920.0,102910.0,0.00648338]
[1747630211059,1.55471463,102920.0,102910.0,0.00648338]
[1747630211283,1.59571463,102920.0,102910.0,0.00648338]
[1747630211496,1.09731463,102920.0,102910.0,0.00648338]
[1747630211755,1.54871463,102920.0,102910.0,0.00648338]
[1747630211994,1.09831463,102920.0,102910.0,0.00648338]
[1747630212203,0.21381991,102890.0,102880.0,0.015882]
[1747630212422,0.56866196,102880.0,102870.0,0.0156683]
[1747630212633,0.76737136,102880.0,102870.0,0.0156683]
[1747630212915,0.50978136,102880.0,102870.0,0.0156683]
[1747630213126,0.98295397,102880.0,102870.0,0.0156683]
[1747630213787,0.97834319,102880.0,102870.0,0.0156683]
[1747630214009,1.42613225,102880.0,102870.0,0.0166683]
[1747630214226,1.23177225,102880.0,102870.0,0.0166683]
[1747630214443,1.94082486,102880.0,102870.0,0.0166683]
[1747630214660,1.93082486,102880.0,102870.0,0.0166683]
[1747630215107,1.47938486,102880.0,102870.0,0.0186683]
[1747630215344,1.47938486,102880.0,102870.0,0.0176683]
[1747630215345,1.93126486,102880.0,102870.0,0.0176683]
[1747630215564,1.33873024,102880.0,102870.0,0.0156683]
[1747630215776,0.88465024,102880.0,102870.0,0.0156683]
[1747630215951,0.88765024,102880.0,102870.0,0.0156683]
[1747630216178,1.34009024,102880.0,102870.0,0.0156683]
[1747630216384,1.66525605,102880.0,102870.0,0.0156683]
[1747630216601,1.68501225,102880.0,102870.0,0.0156683]
[1747630216788,1.67501225,102880.0,102870.0,0.0156683]
[1747630217003,1.68131225,102880.0,102870.0,0.0156683]
[1747630217221,1.69131225,102880.0,102870.0,0.0156683]
[1747630217649,1.44369964,102880.0,102870.0,0.0156683]
[1747630217890,1.69131225,102880.0,102870.0,0.0156683]
[1747630218307,1.70593627,102880.0,102870.0,0.0156683]
[1747630218514,1.59232687,102880.0,102870.0,0.0156683]
[1747630218736,1.59212687,102880.0,102870.0,0.0156683]
[1747630220054,1.33871426,102880.0,102870.0,0.0156683]
[1747630220277,1.35371426,102880.0,102870.0,0.0156683]
[1747630220504,1.59132687,102880.0,102870.0,0.0156683]
[1747630220716,1.68863627,102880.0,102870.0,0.0156683]
[1747630221132,1.47292366,102880.0,102870.0,0.0156683]
[1747630221354,1.71053627,102880.0,102870.0,0.0156683]
[1747630222820,1.69443627,102880.0,102870.0,0.0156683]
[1747630223508,1.12388687,102880.0,102870.0,0.0156683]
[1747630223723,1.59132687,102880.0,102870.0,0.0156683]
[1747630223935,1.60702687,102880.0,102870.0,0.0156683]
[1747630224145,1.59702687,102880.0,102870.0,0.0156683]
[1747630225711,1.34941426,102880.0,102870.0,0.0156683]
[1747630225937,1.59132687,102880.0,102870.0,0.0156683]
[1747630229460,0.73050939,102880.0,102870.0,0.0156683]
[1747630229713,0.96482939,102880.0,102870.0,0.0156683]
[1747630229918,0.96482939,102880.0,102870.0,0.0307683]
[1747630230147,1.30482939,102880.0,102870.0,0.0307683]
[1747630230367,1.31937024,102880.0,102870.0,0.0307683]
[1747630231051,1.07050939,102880.0,102870.0,0.0307683]
[1747630231270,1.30414939,102880.0,102870.0,0.0457683]
[1747630231923,0.95814939,102880.0,102870.0,0.0457683]
[1747630232385,0.50965024,102880.0,102870.0,0.0457683]
[1747630232603,0.74277024,102880.0,102870.0,0.0457683]
[1747630233018,0.50965024,102880.0,102870.0,0.0307683]
[1747630233229,0.74281024,102880.0,102870.0,0.0307683]
[1747630233466,0.74281024,102880.0,102870.0,0.0156683]
[1747630233682,1.36893275,102880.0,102870.0,0.0156683]
[1747630234124,1.39053275,102880.0,102870.0,0.0156683]
[1747630235003,1.40496152,102880.0,102870.0,0.0156683]
[1747630235837,1.14104891,102880.0,102870.0,0.0156683]
[1747630236057,1.38866152,102880.0,102870.0,0.0156683]
[1747630237233,1.40496152,102880.0,102870.0,0.0156683]
[1747630237445,0.22846472,102840.0,102830.0,0.016]
[1747630237667,0.55877412,102840.0,102830.0,0.016]
[1747630237882,0.75258412,102840.0,102830.0,0.032]
[1747630238585,0.75258412,102840.0,102830.0,0.03821487]
[1747630238586,0.73804327,102840.0,102830.0,0.03821487]
[1747630238793,0.73809121,102840.0,102830.0,0.04321487]
[1747630239013,0.75263206,102840.0,102830.0,0.04321487]
[1747630239260,0.73809121,102840.0,102830.0,0.04321487]
[1747630239512,0.50509121,102840.0,102830.0,0.04321487]
[1747630239760,0.50509121,102840.0,102830.0,0.24743541]
[1747630239982,0.31061379,102840.0,102830.0,0.28060843]
[1747630240200,0.51481505,102840.0,102830.0,0.04721487]
[1747630240420,0.50509168,102840.0,102830.0,0.04721487]
[1747630241336,0.50509168,102840.0,102830.0,0.11721487]
[1747630242185,0.57504825,102840.0,102830.0,0.04721487]
[1747630242395,0.5895891,102840.0,102830.0,0.04721487]
[1747630242615,0.51963253,102840.0,102830.0,0.04721487]
[1747630244585,0.74997168,102840.0,102830.0,0.04721487]
[1747630244793,0.50509168,102840.0,102830.0,0.05760031]
[1747630246128,0.50509168,102840.0,102830.0,0.12760031]
[1747630247209,0.50509168,102840.0,102830.0,0.05760031]
[1747630251811,0.50509168,102840.0,102830.0,0.04721487]
[1747630253107,0.50509168,102840.0,102830.0,0.05693965]
[1747630253550,0.50509168,102840.0,102830.0,0.25143541]
[1747630253795,0.50509168,102840.0,102830.0,0.2611601]
[1747630254255,0.31061379,102840.0,102830.0,0.27088451]
[1747630254480,0.32033744,102840.0,102830.0,0.28060873]
[1747630254703,0.19385794,102840.0,102830.0,0.29033285]
[1747630255149,0.19385794,102840.0,102830.0,0.63033285]
[1747630255370,0.16165794,102840.0,102830.0,0.21494429]
[1747630255617,0.16165794,102840.0,102830.0,0.2343932]
[1747630255846,0.16165794,102840.0,102830.0,0.55555798]
[1747630256067,0.50165794,102840.0,102830.0,0.55555798]
[1747630257013,0.50165794,102840.0,102830.0,0.57001005]
[1747630257284,0.50165794,102840.0,102830.0,0.57701005]
[1747630258200,0.50165794,102840.0,102830.0,0.60841005]
[1747630258915,0.51138102,102840.0,102830.0,0.60841005]
[1747630260776,0.50165794,102840.0,102830.0,0.60841005]